fUSD/lending_fUSD_20260518
["ID","MTS","AMOUNT","RATE_DAILY","PERIOD"]
[422530713,1779039032000,-500.0,0.00013698,2]
[422530710,1779039032000,-500.0,0.00013698,2]
[422530712,1779039032000,-500.0,0.00013698,2]
[422530711,1779039032000,-500.0,0.00013698,2]
[422530709,1779039032000,-500.0,0.00013698,2]
[422530716,1779039032000,-372.71342826,0.00013698,2]
[422530717,1779039032000,-500.0,0.00013698,2]
[422530718,1779039032000,-500.0,0.00013698,2]
[422530720,1779039032000,-500.0,0.00013698,2]
[422530726,1779039032000,-525.7,0.00013698,2]
[422530723,1779039032000,-525.7,0.00013698,2]
[422530721,1779039032000,-500.0,0.00013698,2]
[422530714,1779039032000,-500.0,0.00013698,2]
[422530727,1779039032000,-525.7,0.00013698,2]
[422530783,1779039033000,-502.56,0.00013698,2]
[422530787,1779039033000,-502.56,0.00013698,2]
[422530785,1779039033000,-502.56,0.00013698,2]
[422530779,1779039033000,-502.56,0.00013698,2]
[422530782,1779039033000,-502.56,0.00013698,2]
[422530786,1779039033000,-502.56,0.00013698,2]
[422530781,1779039033000,-502.56,0.00013698,2]
[422530784,1779039033000,-502.56,0.00013698,2]
[422530777,1779039033000,-502.56,0.00013698,2]
[422530788,1779039033000,-5192.73,0.00013698,2]
[422530778,1779039033000,-502.56,0.00013698,2]
[422530780,1779039033000,-502.56,0.00013698,2]
[422530789,1779039033000,-5192.73,0.00013698,2]
[422530797,1779039033000,-5192.73,0.00013698,2]
[422530792,1779039033000,-5192.73,0.00013698,2]
[422530791,1779039033000,-5192.73,0.00013698,2]
[422530794,1779039033000,-5192.73,0.00013698,2]
[422530795,1779039033000,-5192.73,0.00013698,2]
[422530793,1779039033000,-5192.73,0.00013698,2]
[422530796,1779039033000,-5192.73,0.00013698,2]
[422530800,1779039033000,-5192.73,0.00013698,2]
[422530798,1779039033000,-5192.73,0.00013698,2]
[422530799,1779039033000,-5192.73,0.00013698,2]
[422530801,1779039033000,-5192.73,0.00013698,2]
[422530802,1779039033000,-5192.73,0.00013698,2]
[422530773,1779039033000,-502.56,0.00013698,2]
[422530790,1779039033000,-5192.73,0.00013698,2]
[422530772,1779039033000,-502.56,0.00013698,2]
[422530753,1779039033000,-500.0,0.00013698,2]
[422530770,1779039033000,-507.15627863,0.00013698,2]
[422530805,1779039033000,-500.0,0.00013698,2]
[422530746,1779039033000,-500.0,0.00013698,2]
[422530747,1779039033000,-500.0,0.00013698,2]
[422530751,1779039033000,-500.0,0.00013698,2]
[422530752,1779039033000,-500.0,0.00013698,2]
[422530750,1779039033000,-500.0,0.00013698,2]
[422530748,1779039033000,-500.0,0.00013698,2]
[422530749,1779039033000,-500.0,0.00013698,2]
[422530754,1779039033000,-500.0,0.00013698,2]
[422530755,1779039033000,-500.0,0.00013698,2]
[422530757,1779039033000,-500.0,0.00013698,2]
[422530758,1779039033000,-500.0,0.00013698,2]
[422530774,1779039033000,-502.56,0.00013698,2]
[422530759,1779039033000,-500.0,0.00013698,2]
[422530763,1779039033000,-500.0,0.00013698,2]
[422530760,1779039033000,-500.0,0.00013698,2]
[422530761,1779039033000,-500.0,0.00013698,2]
[422530764,1779039033000,-500.0,0.00013698,2]
[422530762,1779039033000,-500.0,0.00013698,2]
[422530765,1779039033000,-500.0,0.00013698,2]
[422530766,1779039033000,-500.0,0.00013698,2]
[422530775,1779039033000,-502.56,0.00013698,2]
[422530769,1779039033000,-500.0,0.00013698,2]
[422530776,1779039033000,-502.56,0.00013698,2]
[422530767,1779039033000,-500.0,0.00013698,2]
[422530768,1779039033000,-500.0,0.00013698,2]
[422530756,1779039033000,-500.0,0.00013698,2]
[422530808,1779039033000,-431.71,0.00013699,2]
[422530771,1779039033000,-502.56,0.00013698,2]
[422530806,1779039033000,-500.0,0.00013698,2]
[422530837,1779039033000,-500.0,0.00014998,2]
[422530840,1779039033000,-500.0,0.00014998,2]
[422530845,1779039033000,-500.0,0.00014998,2]
[422530844,1779039033000,-519.93555764,0.00014998,2]
[422530839,1779039033000,-311.07666925,0.00014998,2]
[422530842,1779039033000,-500.0,0.00014998,2]
[422530846,1779039033000,-500.0,0.00014998,2]
[422530847,1779039033000,-500.0,0.00014998,2]
[422530838,1779039033000,-500.0,0.00014998,2]
[422530843,1779039033000,-500.0,0.00014998,2]
[422530841,1779039033000,-441.49069618,0.00014998,2]
[422530848,1779039033000,-500.0,0.00014998,2]
[422530863,1779039033000,-525.7,0.00014999,2]
[422530853,1779039033000,-500.0,0.00014998,2]
[422530849,1779039033000,-500.0,0.00014998,2]
[422530851,1779039033000,-500.0,0.00014998,2]
[422530852,1779039033000,-500.0,0.00014998,2]
[422530856,1779039033000,-500.0,0.00014998,2]
[422530857,1779039033000,-500.0,0.00014998,2]
[422530858,1779039033000,-525.7,0.00014999,2]
[422530855,1779039033000,-500.0,0.00014998,2]
[422530854,1779039033000,-500.0,0.00014998,2]
[422530859,1779039033000,-525.7,0.00014999,2]
[422530860,1779039033000,-525.7,0.00014999,2]
[422530862,1779039033000,-525.7,0.00014999,2]
[422530807,1779039033000,-155.4004484,0.00013698,2]
[422530850,1779039033000,-500.0,0.00014998,2]
[422530832,1779039033000,-500.0,0.00014745,2]
[422530861,1779039033000,-525.7,0.00014999,2]
[422530836,1779039033000,-150.0,0.00014893,2]
[422530812,1779039033000,-210.0,0.00013905,2]
[422530803,1779039033000,-5192.73,0.00013698,2]
[422530811,1779039033000,-166.66,0.00013836,2]
[422530809,1779039033000,-166.66,0.00013699,2]
[422530804,1779039033000,-5192.73,0.00013698,2]
[422530810,1779039033000,-156.74,0.00013699,2]
[422530813,1779039033000,-166.66,0.00013973,2]
[422530827,1779039033000,-5192.73,0.00014249,2]
[422530817,1779039033000,-166.66,0.00014247,2]
[422530823,1779039033000,-525.7,0.00014249,2]
[422530818,1779039033000,-500.0,0.00014248,2]
[422530820,1779039033000,-500.0,0.00014248,2]
[422530819,1779039033000,-500.0,0.00014248,2]
[422530814,1779039033000,-8348.76460396,0.0001401,2]
[422530822,1779039033000,-500.0,0.00014248,2]
[422530830,1779039033000,-1958.89,0.00014513,2]
[422530816,1779039033000,-1958.89,0.00014159,2]
[422530828,1779039033000,-166.66,0.00014384,2]
[422530829,1779039033000,-2000.0,0.00014511,2]
[422530835,1779039033000,-1958.89,0.00014867,2]
[422530831,1779039033000,-200.0,0.00014716,2]
[422530834,1779039033000,-669.23,0.000148,2]
[422530826,1779039033000,-502.56,0.00014249,2]
[422530825,1779039033000,-500.0,0.00014249,2]
[422530821,1779039033000,-375.48613759,0.00014248,2]
[422530824,1779039033000,-500.0,0.00014249,2]
[422530815,1779039033000,-166.66,0.0001411,2]
[422530833,1779039033000,-7276.79940279,0.00014781,2]
[422530903,1779039034000,-593.0,0.00017084,2]
[422530904,1779039034000,-729.0,0.00017281,2]
[422530905,1779039034000,-500.0,0.00017661,2]
[422530902,1779039034000,-502.0,0.00016916,2]
[422530898,1779039034000,-2000.0,0.00016123,2]
[422530885,1779039034000,-1958.89,0.00015221,2]
[422530901,1779039034000,-304.0,0.00016813,2]
[422530897,1779039034000,-9999.99,0.00016116,2]
[422530896,1779039034000,-625.0,0.00015977,2]
[422530892,1779039034000,-954.55285951,0.00015873,2]
[422530899,1779039034000,-291.4,0.00016438,2]
[422530900,1779039034000,-172.29,0.00016753,2]
[422530919,1779039034000,-500.0,0.00017808,2]
[422530907,1779039034000,-8348.76460391,0.00017689,2]
[422530908,1779039034000,-2000.0,0.00017736,2]
[422530909,1779039034000,-392.66924964,0.00017762,21]
[422530910,1779039034000,-500.0,0.00017808,2]
[422530911,1779039034000,-500.0,0.00017808,2]
[422530916,1779039034000,-500.0,0.00017808,2]
[422530917,1779039034000,-500.0,0.00017808,2]
[422530914,1779039034000,-500.0,0.00017808,2]
[422530915,1779039034000,-500.0,0.00017808,2]
[422530918,1779039034000,-641.70072013,0.00017808,2]
[422530913,1779039034000,-500.0,0.00017808,2]
[422530895,1779039034000,-6055.0,0.00015977,2]
[422530906,1779039034000,-500.0,0.00017661,2]
[422530890,1779039034000,-150.0,0.00015748,2]
[422530879,1779039034000,-5192.73,0.00014999,2]
[422530887,1779039034000,-1958.89,0.00015575,2]
[422530912,1779039034000,-500.0,0.00017808,2]
[422530864,1779039034000,-525.7,0.00014999,2]
[422530865,1779039034000,-525.7,0.00014999,2]
[422530867,1779039034000,-525.74572099,0.00014999,2]
[422530866,1779039034000,-525.7,0.00014999,2]
[422530868,1779039034000,-500.0,0.00014999,2]
[422530870,1779039034000,-588.50661964,0.00014999,2]
[422530869,1779039034000,-182.00213245,0.00014999,2]
[422530872,1779039034000,-502.56,0.00014999,2]
[422530874,1779039034000,-502.56,0.00014999,2]
[422530880,1779039034000,-5192.73,0.00014999,2]
[422530873,1779039034000,-502.56,0.00014999,2]
[422530877,1779039034000,-5192.73,0.00014999,2]
[422530875,1779039034000,-502.56,0.00014999,2]
[422530876,1779039034000,-502.63,0.00014999,2]
[422530878,1779039034000,-5192.73,0.00014999,2]
[422530881,1779039034000,-5192.73,0.00014999,2]
[422530882,1779039034000,-5192.7546713,0.00014999,2]
[422530883,1779039034000,-150.0,0.00015096,2]
[422530884,1779039034000,-304.0,0.00015132,2]
[422530894,1779039034000,-1223.0,0.00015977,2]
[422530888,1779039034000,-253.23274538,0.00015629,2]
[422530889,1779039034000,-150.0,0.00015748,2]
[422530891,1779039034000,-150.0,0.00015749,2]
[422530886,1779039034000,-282.23231993,0.00015298,2]
[422530893,1779039034000,-1270.0,0.00015977,2]
[422530920,1779039034000,-500.0,0.00017808,2]
[422530871,1779039034000,-502.56,0.00014999,2]
[422530922,1779039034000,-500.0,0.00017808,2]
[422530953,1779039034000,-1270.0,0.00018977,2]
[422530954,1779039034000,-1223.0,0.00018977,2]
[422530957,1779039034000,-2000.0,0.00019348,2]
[422530955,1779039034000,-6055.0,0.00018977,2]
[422530959,1779039034000,-500.0,0.00019411,2]
[422530956,1779039034000,-625.0,0.00018977,2]
[422530961,1779039034000,-442.23348192,0.00019411,2]
[422530960,1779039034000,-500.0,0.00019411,2]
[422530958,1779039034000,-185.21,0.000194,7]
[422530963,1779039034000,-204.0,0.0002,2]
[422530962,1779039034000,-500.0,0.00019411,2]
[422530965,1779039034000,-200.0,0.0002,10]
[422530975,1779039034000,-17038.33341837,0.0002099,2]
[422530966,1779039034000,-190.0,0.0002,2]
[422530976,1779039034000,-197.81098472,0.00020996,2]
[422530964,1779039034000,-271.0,0.0002,2]
[422530970,1779039034000,-300.0,0.000201,10]
[422530967,1779039034000,-151.0,0.0002,2]
[422530969,1779039034000,-1180.0,0.0002,2]
[422530971,1779039034000,-172.29,0.00020104,2]
[422530973,1779039034000,-291.4,0.00020381,2]
[422530978,1779039034000,-271.0,0.00021,2]
[422530968,1779039034000,-3518.83,0.0002,2]
[422530972,1779039034000,-304.0,0.00020175,2]
[422530977,1779039034000,-204.0,0.00021,2]
[422530952,1779039034000,-304.0,0.00018494,2]
[422530950,1779039034000,-500.0,0.00018381,2]
[422530974,1779039034000,-700.0,0.000209,7]
[422530951,1779039034000,-291.4,0.0001841,2]
[422530942,1779039034000,-151.0,0.00018027,2]
[422530923,1779039034000,-500.0,0.00017808,2]
[422530924,1779039034000,-500.0,0.00017808,2]
[422530928,1779039034000,-500.0,0.00017808,2]
[422530925,1779039034000,-500.0,0.00017808,2]
[422530926,1779039034000,-500.0,0.00017808,2]
[422530927,1779039034000,-500.0,0.00017808,2]
[422530931,1779039034000,-151.0,0.00018027,2]
[422530939,1779039034000,-151.0,0.00018027,2]
[422530940,1779039034000,-151.0,0.00018027,2]
[422530934,1779039034000,-151.0,0.00018027,2]
[422530932,1779039034000,-151.0,0.00018027,2]
[422530936,1779039034000,-151.0,0.00018027,2]
[422530921,1779039034000,-500.0,0.00017808,2]
[422530935,1779039034000,-151.0,0.00018027,2]
[422530929,1779039034000,-500.0,0.00017808,2]
[422530944,1779039034000,-151.0,0.00018027,2]
[422530946,1779039034000,-151.0,0.00018027,2]
[422530943,1779039034000,-151.0,0.00018027,2]
[422530948,1779039034000,-151.0,0.00018027,2]
[422530945,1779039034000,-151.0,0.00018027,2]
[422530941,1779039034000,-151.0,0.00018027,2]
[422530949,1779039034000,-151.0,0.00018027,2]
[422530938,1779039034000,-151.0,0.00018027,2]
[422530933,1779039034000,-151.0,0.00018027,2]
[422530937,1779039034000,-151.0,0.00018027,2]
[422530930,1779039034000,-151.0,0.00018027,2]
[422530947,1779039034000,-151.0,0.00018027,2]
[422531022,1779039035000,-1385.0,0.00023892,5]
[422531009,1779039035000,-259.425297,0.00022834,14]
[422531007,1779039035000,-13988.6,0.00022562,2]
[422531008,1779039035000,-250.98,0.00022643,2]
[422531010,1779039035000,-1000.0,0.000229,2]
[422531017,1779039035000,-555.63,0.000233,14]
[422531020,1779039035000,-500.0,0.00023784,2]
[422531013,1779039035000,-204.0,0.00023,2]
[422531024,1779039035000,-204.0,0.00024,2]
[422531006,1779039035000,-2633.7,0.00022562,2]
[422531018,1779039035000,-150.0,0.00023368,2]
[422531014,1779039035000,-271.0,0.00023,2]
[422531019,1779039035000,-500.0,0.00023784,2]
[422531016,1779039035000,-1180.0,0.00023,2]
[422531023,1779039035000,-166.16,0.00023892,2]
[422531004,1779039035000,-500.0,0.00022408,2]
[422531021,1779039035000,-500.0,0.00023784,2]
[422531012,1779039035000,-308.0,0.000229,2]
[422531026,1779039035000,-190.0,0.00024,2]
[422531036,1779039035000,-218.02,0.00024658,2]
[422531037,1779039035000,-219.97,0.00024658,2]
[422531031,1779039035000,-1000.0,0.00024658,2]
[422531015,1779039035000,-190.0,0.00023,2]
[422531005,1779039035000,-500.0,0.00022408,2]
[422530992,1779039035000,-502.19366222,0.00022016,2]
[422531002,1779039035000,-500.0,0.00022408,2]
[422531029,1779039035000,-291.4,0.00024324,2]
[422530979,1779039035000,-190.0,0.00021,2]
[422530982,1779039035000,-8348.76460391,0.00021367,2]
[422530980,1779039035000,-151.0,0.00021,2]
[422530984,1779039035000,-5000.0,0.00021918,2]
[422530987,1779039035000,-204.0,0.00022,2]
[422530985,1779039035000,-1223.0,0.00021977,2]
[422530983,1779039035000,-2079.3,0.00021846,2]
[422530981,1779039035000,-1180.0,0.00021,2]
[422530986,1779039035000,-6055.0,0.00021977,2]
[422530988,1779039035000,-271.0,0.00022,2]
[422530990,1779039035000,-161.0,0.00022,2]
[422530997,1779039035000,-500.0,0.00022408,2]
[422530994,1779039035000,-500.0,0.00022318,2]
[422530991,1779039035000,-1180.0,0.00022,2]
[422530998,1779039035000,-490.0,0.00022408,2]
[422530993,1779039035000,-500.0,0.00022318,2]
[422530995,1779039035000,-291.4,0.00022353,2]
[422530999,1779039035000,-500.0,0.00022408,2]
[422530996,1779039035000,-500.0,0.00022408,2]
[422531011,1779039035000,-314.0,0.000229,2]
[422531001,1779039035000,-500.0,0.00022408,2]
[422531000,1779039035000,-500.0,0.00022408,2]
[422531003,1779039035000,-500.0,0.00022408,2]
[422530989,1779039035000,-190.0,0.00022,2]
[422531028,1779039035000,-2553.27,0.00024174,2]
[422531034,1779039035000,-154.6,0.00024658,2]
[422531064,1779039035000,-451.0,0.00025831,10]
[422531061,1779039035000,-500.0,0.0002583,2]
[422531062,1779039035000,-500.0,0.0002583,2]
[422531065,1779039035000,-561.0,0.00025831,10]
[422531066,1779039035000,-166.16,0.00025864,2]
[422531063,1779039035000,-1731.0,0.00025831,5]
[422531068,1779039035000,-1500.0,0.000269,9]
[422531067,1779039035000,-291.4,0.00026296,2]
[422531069,1779039035000,-150.0,0.00027123,2]
[422531070,1779039035000,-241.21762394,0.00027123,2]
[422531072,1779039035000,-150.0,0.00027123,2]
[422531077,1779039035000,-150.0,0.00027123,2]
[422531076,1779039035000,-500.0,0.00027123,2]
[422531073,1779039035000,-500.0,0.00027123,2]
[422531075,1779039035000,-500.0,0.00027123,2]
[422531080,1779039035000,-243.06675581,0.00027123,2]
[422531078,1779039035000,-150.0,0.00027123,2]
[422531074,1779039035000,-150.0,0.00027123,2]
[422531079,1779039035000,-150.0,0.00027123,2]
[422531082,1779039035000,-150.0,0.00027123,2]
[422531081,1779039035000,-150.0,0.00027123,2]
[422531083,1779039035000,-299.93318737,0.00027123,2]
[422531035,1779039035000,-152.06,0.00024658,2]
[422531058,1779039035000,-151.98,0.00025811,7]
[422531057,1779039035000,-2553.27,0.00025786,2]
[422531071,1779039035000,-150.0,0.00027123,2]
[422531052,1779039035000,-152.13,0.00025234,2]
[422531033,1779039035000,-218.48,0.00024658,2]
[422531059,1779039035000,-152.06,0.00025811,7]
[422531027,1779039035000,-1180.0,0.00024,2]
[422531025,1779039035000,-271.0,0.00024,2]
[422531030,1779039035000,-500.0,0.00024397,2]
[422531032,1779039035000,-219.64,0.00024658,2]
[422531048,1779039035000,-198.0,0.00025,2]
[422531041,1779039035000,-152.06,0.00024946,7]
[422531047,1779039035000,-283.0,0.00025,2]
[422531039,1779039035000,-200.0,0.00024744,2]
[422531040,1779039035000,-5000.0,0.00024877,2]
[422531042,1779039035000,-152.13,0.00024946,7]
[422531046,1779039035000,-205.0,0.00025,2]
[422531045,1779039035000,-154.6,0.0002498,7]
[422531055,1779039035000,-152.06,0.00025523,2]
[422531051,1779039035000,-152.06,0.00025234,2]
[422531054,1779039035000,-392.66924964,0.00025519,21]
[422531053,1779039035000,-154.6,0.00025302,30]
[422531056,1779039035000,-152.13,0.00025523,2]
[422531060,1779039035000,-152.13,0.00025811,7]
[422531050,1779039035000,-8348.76460391,0.00025046,2]
[422531044,1779039035000,-6055.0,0.00024977,2]
[422531038,1779039035000,-152.13,0.00024658,2]
[422531043,1779039035000,-1223.0,0.00024977,2]
[422531049,1779039035000,-1196.0,0.00025,2]
[422531127,1779039036000,-153.32,0.0002873,2]
[422531123,1779039036000,-152.99,0.00028696,30]
[422531124,1779039036000,-154.37,0.00028696,30]
[422531126,1779039036000,-154.13,0.0002873,2]
[422531121,1779039036000,-154.13,0.00028696,30]
[422531122,1779039036000,-153.32,0.00028696,30]
[422531114,1779039036000,-153.32,0.00028663,7]
[422531120,1779039036000,-154.61,0.00028684,7]
[422531116,1779039036000,-154.37,0.00028663,7]
[422531110,1779039036000,-154.37,0.0002863,2]
[422531111,1779039036000,-156.03,0.0002863,2]
[422531119,1779039036000,-154.6,0.00028684,7]
[422531130,1779039036000,-154.37,0.0002873,2]
[422531136,1779039036000,-152.99,0.00028763,7]
[422531125,1779039036000,-8348.76460391,0.00028724,2]
[422531128,1779039036000,-155.96,0.0002873,30]
[422531129,1779039036000,-152.99,0.0002873,2]
[422531133,1779039036000,-154.61,0.00028739,30]
[422531143,1779039036000,-153.32,0.00028797,30]
[422531137,1779039036000,-154.37,0.00028763,7]
[422531144,1779039036000,-152.99,0.00028797,30]
[422531134,1779039036000,-154.13,0.00028763,7]
[422531132,1779039036000,-154.6,0.00028739,30]
[422531139,1779039036000,-156.03,0.0002878,2]
[422531135,1779039036000,-153.32,0.00028763,7]
[422531118,1779039036000,-156.03,0.0002868,7]
[422531131,1779039036000,-156.03,0.0002873,30]
[422531107,1779039036000,-154.6,0.0002863,2]
[422531092,1779039036000,-300.0,0.00027397,2]
[422531109,1779039036000,-152.99,0.0002863,2]
[422531142,1779039036000,-154.13,0.00028797,30]
[422531089,1779039036000,-505.0,0.00027137,2]
[422531087,1779039036000,-505.0,0.00027137,2]
[422531085,1779039036000,-150.0,0.00027123,2]
[422531094,1779039036000,-16085.6,0.00027397,10]
[422531086,1779039036000,-250.0,0.00027123,2]
[422531088,1779039036000,-505.0,0.00027137,2]
[422531090,1779039036000,-275.30179489,0.00027397,2]
[422531084,1779039036000,-150.0,0.00027123,2]
[422531091,1779039036000,-1500.0,0.00027397,2]
[422531093,1779039036000,-8435.33,0.00027397,10]
[422531096,1779039036000,-500.0,0.000278,7]
[422531095,1779039036000,-160.26,0.000274,7]
[422531097,1779039036000,-166.16,0.00027836,2]
[422531102,1779039036000,-500.0,0.00028132,7]
[422531104,1779039036000,-505.0,0.00028626,3]
[422531098,1779039036000,-505.0,0.00027882,2]
[422531103,1779039036000,-291.4,0.00028267,2]
[422531099,1779039036000,-1223.0,0.00027977,2]
[422531101,1779039036000,-500.0,0.00028132,10]
[422531100,1779039036000,-6055.0,0.00027977,2]
[422531105,1779039036000,-154.13,0.0002863,2]
[422531108,1779039036000,-155.96,0.0002863,2]
[422531115,1779039036000,-152.99,0.00028663,7]
[422531117,1779039036000,-155.96,0.0002868,7]
[422531106,1779039036000,-153.32,0.0002863,2]
[422531112,1779039036000,-154.61,0.0002863,2]
[422531113,1779039036000,-154.13,0.00028663,7]
[422531140,1779039036000,-154.6,0.00028794,2]
[422531192,1779039036000,-156.03,0.00029031,30]
[422531141,1779039036000,-154.61,0.00028794,2]
[422531178,1779039036000,-154.37,0.00028964,7]
[422531174,1779039036000,-154.61,0.00028958,2]
[422531176,1779039036000,-153.32,0.00028964,7]
[422531177,1779039036000,-152.99,0.00028964,7]
[422531180,1779039036000,-156.03,0.00028981,7]
[422531181,1779039036000,-154.13,0.00028998,30]
[422531183,1779039036000,-152.99,0.00028998,30]
[422531189,1779039036000,-155.96,0.00029031,30]
[422531182,1779039036000,-153.32,0.00028998,30]
[422531190,1779039036000,-152.99,0.00029031,2]
[422531185,1779039036000,-154.6,0.00029013,7]
[422531187,1779039036000,-154.13,0.00029031,2]
[422531179,1779039036000,-155.96,0.00028981,7]
[422531184,1779039036000,-154.37,0.00028998,30]
[422531188,1779039036000,-153.32,0.00029031,2]
[422531191,1779039036000,-154.37,0.00029031,2]
[422531193,1779039036000,-154.13,0.00029065,7]
[422531198,1779039036000,-155.96,0.00029082,2]
[422531195,1779039036000,-152.99,0.00029065,7]
[422531196,1779039036000,-154.37,0.00029065,7]
[422531200,1779039036000,-154.13,0.00029098,30]
[422531194,1779039036000,-153.32,0.00029065,7]
[422531199,1779039036000,-156.03,0.00029082,2]
[422531202,1779039036000,-152.99,0.00029098,30]
[422531197,1779039036000,-154.6,0.00029068,30]
[422531201,1779039036000,-153.32,0.00029098,30]
[422531186,1779039036000,-154.61,0.00029013,7]
[422531175,1779039036000,-154.13,0.00028964,7]
[422531138,1779039036000,-155.96,0.0002878,2]
[422531170,1779039036000,-154.37,0.00028931,2]
[422531146,1779039036000,-154.13,0.0002883,2]
[422531145,1779039036000,-154.37,0.00028797,30]
[422531147,1779039036000,-153.32,0.0002883,2]
[422531156,1779039036000,-152.99,0.00028864,7]
[422531151,1779039036000,-156.03,0.0002883,7]
[422531153,1779039036000,-154.61,0.00028849,7]
[422531154,1779039036000,-154.13,0.00028864,7]
[422531173,1779039036000,-154.6,0.00028958,2]
[422531155,1779039036000,-153.32,0.00028864,7]
[422531152,1779039036000,-154.6,0.00028849,7]
[422531150,1779039036000,-154.37,0.0002883,2]
[422531149,1779039036000,-152.99,0.0002883,2]
[422531158,1779039036000,-155.96,0.00028881,30]
[422531148,1779039036000,-155.96,0.0002883,7]
[422531165,1779039036000,-154.61,0.00028904,30]
[422531159,1779039036000,-156.03,0.00028881,30]
[422531171,1779039036000,-156.03,0.00028931,2]
[422531169,1779039036000,-152.99,0.00028931,2]
[422531166,1779039036000,-154.13,0.00028931,2]
[422531161,1779039036000,-153.32,0.00028897,30]
[422531162,1779039036000,-152.99,0.00028897,30]
[422531172,1779039036000,-194.04175838,0.00028945,5]
[422531167,1779039036000,-153.32,0.00028931,2]
[422531168,1779039036000,-155.96,0.00028931,2]
[422531157,1779039036000,-154.37,0.00028864,7]
[422531164,1779039036000,-154.6,0.00028904,30]
[422531160,1779039036000,-154.13,0.00028897,30]
[422531163,1779039036000,-154.37,0.00028897,30]
[422531246,1779039037000,-158.0,0.00030152,30]
[422531250,1779039037000,-1180.0,0.00030152,30]
[422531241,1779039037000,-161.0,0.00030152,30]
[422531240,1779039037000,-271.0,0.00030152,30]
[422531239,1779039037000,-204.0,0.00030152,30]
[422531234,1779039037000,-1000.0,0.00029999,22]
[422531242,1779039037000,-190.0,0.00030152,30]
[422531233,1779039037000,-150.0,0.00029534,2]
[422531230,1779039037000,-505.0,0.00029371,4]
[422531231,1779039037000,-463.02,0.000294,14]
[422531238,1779039037000,-156.0,0.00030152,30]
[422531254,1779039037000,-291.4,0.00030239,2]
[422531264,1779039037000,-500.0,0.00031039,120]
[422531248,1779039037000,-151.0,0.00030152,30]
[422531252,1779039037000,-2732.94,0.000302,2]
[422531255,1779039037000,-198.07472834,0.00030558,30]
[422531257,1779039037000,-160.26,0.000309,7]
[422531258,1779039037000,-1000.0,0.0003092,4]
[422531256,1779039037000,-505.0,0.0003086,6]
[422531259,1779039037000,-500.0,0.00030959,120]
[422531262,1779039037000,-198.07472834,0.0003098,30]
[422531266,1779039037000,-156.0,0.00031152,30]
[422531261,1779039037000,-6055.0,0.00030977,2]
[422531263,1779039037000,-150.0,0.00031011,2]
[422531260,1779039037000,-1223.0,0.00030977,2]
[422531227,1779039037000,-153.12,0.00029232,2]
[422531244,1779039037000,-154.0,0.00030152,30]
[422531236,1779039037000,-198.07472834,0.00030137,30]
[422531218,1779039037000,-156.03,0.00029182,30]